Cogmind - Beta 14 @@@ ROGUE MODE // 2024.10.25 @ 22:04:03 Player: morimori Result: Destroyed by S-27 Virus with Autogun Performance ------------- Evolutions (5) 2500 Regions Visited (25) 5000 Robots Destroyed (291) 1455 Value Destroyed (8665) 8665 Prototype IDs (41) 820 Alien Tech Used (0) 0 Bonus (-3587) -3587 TOTAL SCORE: 14853 Bonus ------- High Alert Combat Kills 818 Follower Combat Kills 2452 Network Hubs Disabled 200 Met Data Miner 300 Met Warlord at Base 500 MAIN.C Attacked Warlord 500 Built Enhanced Grunts 300 Friendly Fire -8657 Cogmind --------- Core Integrity 0/1000 Matter 286/300 Energy 99/100 System Corruption 16% Temperature Cool (0) Movement Core (700) Ox13 Location -4/Proximity Caves Parts ------- > --- POWER (1) -------- (None) > --- PROPULSION (6) --- (None) > --- UTILITY (8) ------ High-capacity Storage Unit Armor Integrity Analyzer > --- WEAPON (2) ------- (None) > --- INVENTORY (20) --- Vortex Chain Reactor Advanced Heat Sink Advanced Energy Well (471) Experimental Melee Analysis Suite Experimental Phase Shifter Experimental Utility Shielding Advanced Hardlight Generator Point Defense Array Improved Hacking Suite Authchip [Device] Authchip [Device] Authchip [Device] Authchip [Device] Authchip [Device] Authchip [Device] Authchip [Device] Vortex Rifle (9) Disruptor Cannon Peak State ------------ > --- POWER ------------ Micro Fission Core > --- PROPULSION ------- Antigrav System Cooled Antigrav System Cooled Antigrav System Combat Linear Gravjet Combat Linear Gravjet > --- UTILITY ---------- High-capacity Storage Unit Advanced Signal Interpreter Advanced Terrain Scanner Advanced Terrain Scan Processor Experimental Shock Absorption System Improved Hacking Suite Improved Hacking Suite Improved Hacking Suite > --- WEAPON ----------- Neutron Cannon > --- INVENTORY -------- Vortex Chain Reactor Advanced Heat Sink Advanced Energy Well Experimental Melee Analysis Suite Experimental Phase Shifter Experimental Utility Shielding Advanced Hardlight Generator Point Defense Array Improved Hacking Suite Authchip [Device] Authchip [Device] Authchip [Device] Authchip [Device] Authchip [Device] Authchip [Device] Authchip [Device] Vortex Rifle Vortex Rifle [Rating: 107] Favorites ----------- Power Improved Deuterium Engine Engine Improved Deuterium Engine Power Core Light Nuclear Core Reactor Antimatter Reactor Propulsion Combat Airjet Treads Improved Medium Treads Leg Titanium Leg Wheel Wheel Hover Unit Combat Airjet Utility Improved Hacking Suite Device Improved Sensor Array Storage Large Storage Unit Processor Advanced Terrain Scan Processor Hackware Improved Hacking Suite Protection Hardened Light Armor Plating Weapon Enhanced Autogun Energy Gun Backup Laser III Energy Cannon Neutron Cannon Ballistic Gun Enhanced Autogun Ballistic Cannon Advanced Assault Cannon Launcher Proton Missile Launcher Special Weapon RU-N14's Throwing Claymores v3 Impact Weapon Heavy Hammer Piercing Weapon Lance Build | -11 -10 -10 -9 -9 -8 -8 -7 -7 -7 -7 -7 -7 -6 -6 -6 -6 -6 -6 -6 -6 -5 -5 -5 -5 -4 ------- Run | Yrd Mat Min Mat Min Mat Sto Fac Was Fac Low Low Dat Pro Fac Was Fac Ext Cet Arc Hub Fac Upp Upp War Pro Slots Evolved 10 | . . . 2 . 2 . 2 . . . . . . 2 . . . . . . 2 . . . . Power . | . . . . . . . . . . . . . . . . . . . . . . . . . . Propulsion 4 | . . . . . 2 . 1 . . . . . . . . . . . . . 1 . . . . Utility 6 | . . . 2 . . . 1 . . . . . . 2 . . . . . . 1 . . . . Weapon . | . . . . . . . . . . . . . . . . . . . . . . . . . . Parts Attached 409 | 7 10 11 23 2 27 16 34 8 36 2 . 1 5 27 . 8 30 5 34 11 68 4 2 27 11 Power 47 | 1 2 2 . . 5 3 2 1 3 . . . 1 4 . 1 3 . 3 1 7 2 . 4 2 Engine 22 | 1 2 1 . . 3 3 2 1 2 . . . . 1 . . 2 . 2 . 1 1 . . . Core 18 | . . 1 . . 2 . . . 1 . . . . 2 . 1 1 . 1 1 5 1 . 1 1 Reactor 7 | . . . . . . . . . . . . . 1 1 . . . . . . 1 . . 3 1 Propulsion 96 | 2 4 2 3 2 9 5 11 4 7 . . . . 4 . . 3 . 11 1 16 . . 11 1 Treads 2 | . . . . . . . . . . . . . . . . . 1 . . . 1 . . . . Leg 3 | . . . . . . . . 1 1 . . . . . . . . . 1 . . . . . . Wheel 27 | 2 4 2 3 2 9 3 . . . . . . . . . . . . . . 2 . . . . Hover 64 | . . . . . . 2 11 3 6 . . . . 4 . . 2 . 10 1 13 . . 11 1 Flight . | . . . . . . . . . . . . . . . . . . . . . . . . . . Utility 163 | 2 3 4 5 . 6 1 10 2 16 2 . . 3 12 . 4 17 5 15 7 31 2 2 9 5 Device 90 | 1 1 4 4 . 1 1 2 . 10 2 . . 1 8 . 2 11 3 7 4 15 1 1 8 3 Storage 22 | 1 2 . . . . . 1 2 2 . . . 1 . . . 2 1 . 2 6 . . 1 1 Processor 9 | . . . . . 1 . 4 . 1 . . . . . . 1 . . . . . . 1 . 1 Hackware 11 | . . . . . . . 1 . 3 . . . . 1 . 1 . . 2 . 2 1 . . . Protection 31 | . . . 1 . 4 . 2 . . . . . 1 3 . . 4 1 6 1 8 . . . . Artifact . | . . . . . . . . . . . . . . . . . . . . . . . . . . Weapon 103 | 2 1 3 15 . 7 7 11 1 10 . . 1 1 7 . 3 7 . 5 2 14 . . 3 3 Energy Gun 12 | 1 1 1 1 . . . . . 2 . . . . . . . 1 . . . 1 . . 1 3 Energy Cannon 16 | . . . . . . . 2 1 . . . . . . . 1 1 . 3 1 6 . . 1 . Ballistic Gun 26 | 1 . 1 10 . 5 5 2 . 1 . . . . . . . . . 1 . . . . . . Ballistic Cannon 10 | . . . . . . . . . 3 . . 1 . 4 . 1 . . . 1 . . . . . Launcher 30 | . . 1 4 . 2 2 5 . 3 . . . 1 1 . 1 5 . 1 . 4 . . . . Special Weapon 1 | . . . . . . . . . . . . . . . . . . . . . . . . 1 . Impact Weapon 5 | . . . . . . . 2 . 1 . . . . 2 . . . . . . . . . . . Slashing Weapon . | . . . . . . . . . . . . . . . . . . . . . . . . . . Piercing Weapon 3 | . . . . . . . . . . . . . . . . . . . . . 3 . . . . Special Melee Weapon . | . . . . . . . . . . . . . . . . . . . . . . . . . . Unidentified Prototypes 25 | . . 1 2 . . 3 2 . . . . . 1 1 . . . . 5 1 1 . . 8 . Corrupted Parts 5 | . . . . . . 1 . . . . . . 2 . . . . . 1 . 1 . . . . System Corruption 38 | . . . . . . 4 . . . . . . 14 . . . . . 10 . 10 . . . . Parts Lost 68 | . 3 4 1 . 4 . 4 5 4 . . . . 2 . 2 6 . . 7 4 1 . 6 15 Power 10 | . 1 1 . . . . . 1 . . . . . 1 . . 1 . . 1 1 . . 1 2 Propulsion 32 | . . 2 . . 3 . 2 3 3 . . . . 1 . . 1 . . 5 3 . . 3 6 Utility 18 | . . . 1 . 1 . 2 . 1 . . . . . . 2 3 . . . . 1 . 2 5 Weapon 8 | . 2 1 . . . . . 1 . . . . . . . . 1 . . 1 . . . . 2 Highest Loss Streak 12 | . 1 4 1 . 2 . 1 5 1 . . . . 2 . 1 3 . . 7 2 1 . 5 12 To Critical Strikes . | . . . . . . . . . . . . . . . . . . . . . . . . . . Average Slot Usage (%) 92 | . 95 88 97 100 95 99 96 86 96 100 100 93 100 91 93 91 90 93 95 98 83 97 94 93 73 Engine 3 | . 14 4 . . 6 8 7 6 4 . . . . 3 . . 2 . 1 . . . . . . Core 3 | . . 9 11 11 2 . . . 2 7 7 7 6 2 6 6 3 6 4 4 3 4 5 1 . Wheel 8 | . 27 27 22 22 33 35 . . . . . . . . . . . . . . 2 . . . . Hover 21 | . . . . . . . 37 24 34 38 38 38 38 28 26 26 31 33 33 31 19 35 35 34 29 Device 11 | . 14 14 24 22 7 9 6 7 7 7 7 7 5 12 13 12 13 17 11 11 9 10 11 10 1 Storage 8 | . 14 14 11 11 9 9 7 6 7 7 7 7 7 6 6 6 8 12 6 6 5 5 5 5 5 Processor 9 | . . . . . 7 9 8 15 15 15 15 15 15 13 13 13 13 13 13 13 11 11 11 11 12 Hackware 6 | . . . . . . . 6 7 6 7 7 7 7 12 13 11 1 . 1 13 16 16 17 17 12 Protection 2 | . . . 6 11 9 9 5 . . . . . . . . . 2 2 12 . . . . . . Energy Gun 2 | . 21 7 1 . . . . 13 4 . . . . . . . 1 . . . . . . . . Energy Cannon 1 | . . . . . . . 4 . . . . . . . . 1 4 . 1 5 . 3 . 3 4 Ballistic Gun 4 | . 2 3 20 22 17 17 4 . 1 . . . . . . . . . 2 . . . . . . Launcher 1 | . . 6 . . . . 3 . 2 . . . 6 . . 1 4 6 5 5 . . . . . Peak Build Rating 107 | 7 9 17 31 31 36 38 51 51 51 42 42 42 52 67 67 77 81 73 85 80 103 100 90 107 101 Average Rating 52 | 5 7 10 27 31 32 34 47 38 44 42 42 38 44 55 66 71 66 71 76 71 76 94 90 98 87 On Entrance 50 | . 7 8 17 31 31 34 38 51 45 42 42 42 42 52 67 67 74 66 72 72 35 99 90 90 99 Naked Turns . | . . . . . . . . . . . . . . . . . . . . . . . . . . Heaviest Build 103 | 13 88 91 102 101 101 103 100 62 41 36 36 36 48 44 40 54 86 73 89 54 80 61 59 71 69 Greatest Support 71 | 26 32 32 26 26 50 44 47 47 46 38 38 38 38 54 54 54 54 53 55 48 61 61 61 71 71 Greatest Overweight (x) 22 | 3 2 4 5 5 4 3 2 4 1 . . . 1 1 . . 1 1 1 7 22 19 19 1 20 Average Overweight (x) . | . . 3 4 3 1 2 . 1 . . . . . . . . . . . . . . . . . Largest Inventory Capacity 25 | 8 25 25 25 25 25 25 25 20 20 15 15 15 15 15 15 15 15 15 15 15 20 20 20 20 20 Average Capacity 18 | 7 15 25 25 25 25 25 15 19 15 15 15 15 15 15 15 15 15 15 15 15 16 20 20 20 20 Most Carried 25 | 6 14 16 25 25 25 25 25 18 15 15 15 15 15 15 15 15 15 15 15 15 19 20 20 20 20 Average Carried 16 | 3 9 13 23 25 24 25 14 8 14 15 15 15 14 14 14 14 13 14 14 15 15 19 20 19 19 Final Capacity 25 | 8 25 25 25 25 25 25 15 15 15 15 15 15 15 15 15 15 15 15 15 15 20 20 20 20 20 Final Carried 25 | 6 14 14 25 25 25 25 13 15 15 15 15 15 15 15 15 14 15 15 15 15 19 20 20 19 19 Class Distribution -------------------- 32% | Mutant 23% | Scavenger-Mutant 13% | Hacker-Scout 11% | Hacker-Assassin 9% | Commander-Mutant 3% | Hacker-Mutant Dominant Class ---------------- Mutant | -10/Materials Scavenger-Mutant | -10/Mines Scavenger-Mutant | -9/Materials Mutant | -9/Mines Mutant | -8/Materials Commander-Mutant | -8/Storage Scavenger-Mutant | -7/Factory Scavenger-Mutant | -7/Waste Mutant | -7/Factory Mutant | -7/Lower Caves Mutant | -7/Lower Caves Mutant | -7/Data Miner Mutant | -6/Proximity Caves Hacker-Scout | -6/Factory Hacker-Scout | -6/Waste Hacker-Scout | -6/Factory Commander-Mutant | -6/Extension Commander-Scout | -6/Cetus Commander-Mutant | -6/Archives Scavenger-Scout | -6/Hub_04(d) Hacker-Assassin | -5/Factory Hacker-Assassin | -5/Upper Caves Hacker-Assassin | -5/Upper Caves Hacker-Scout | -5/Warlord Scavenger-Mutant | -4/Proximity Caves Resources | -11 -10 -10 -9 -9 -8 -8 -7 -7 -7 -7 -7 -7 -6 -6 -6 -6 -6 -6 -6 -6 -5 -5 -5 -5 -4 ----------- Run | Yrd Mat Min Mat Min Mat Sto Fac Was Fac Low Low Dat Pro Fac Was Fac Ext Cet Arc Hub Fac Upp Upp War Pro Matter Collected 7742 | 280 111 162 607 244 1022 557 477 142 522 93 18 . 118 481 81 80 405 85 634 103 770 157 234 269 90 Remotely . | . . . . . . . . . . . . . . . . . . . . . . . . . . Salvage Created 11853 | 181 486 180 1040 335 1376 846 1132 725 712 41 . . 221 381 217 29 1638 280 382 347 1082 35 74 62 51 Parts 632 | 12 37 8 62 25 82 43 73 25 43 . . . 8 14 . 1 65 14 29 12 64 1 4 2 8 Haulers Intercepted 12 | . 2 . 2 . 5 2 1 . . . . . . . . . . . . . . . . . . Recyclers Shooed 7 | 1 . . . . . . 2 . 2 . . . . 2 . . . . . . . . . . . Parts Field Recycled . | . . . . . . . . . . . . . . . . . . . . . . . . . . Retrieved Matter . | . . . . . . . . . . . . . . . . . . . . . . . . . . Parts Self-Destructed 14 | . . . . . . . . . . 5 1 . 1 . . . . . . . . . . . 7 Prevented 7 | . . . . . . . . . . . . . 7 . . . . . . . . . . . . Kills | -11 -10 -10 -9 -9 -8 -8 -7 -7 -7 -7 -7 -7 -6 -6 -6 -6 -6 -6 -6 -6 -5 -5 -5 -5 -4 ------- Run | Yrd Mat Min Mat Min Mat Sto Fac Was Fac Low Low Dat Pro Fac Was Fac Ext Cet Arc Hub Fac Upp Upp War Pro Combat Hostiles Destroyed 176 | . 9 4 20 10 28 15 26 . 9 . . . 4 5 . . 18 3 . 4 15 . . . 6 Melee 4 | . . . . . . . . . . . . . . . . . . . . . 4 . . . . Guns 67 | . 9 . 12 10 20 7 . . 4 . . . . . . . . . . . . . . . 5 Cannons 8 | . . . . . . . 4 . 1 . . . . 2 . . . . . . . . . . 1 AOE 80 | . . 4 8 . 8 8 20 . 3 . . . 3 3 . . 11 . . 3 9 . . . . Classes Destroyed 22 | 2 6 . 4 1 1 2 . . 2 . . . 1 . . . . . . 1 . 1 . 1 . Worker 21 | . 1 . 3 . 3 . 4 . 2 . . . . 1 . 1 2 . . 1 3 . . . . Builder 6 | . . . 1 . . . 2 . 2 . . . . . . . . . . . 1 . . . . Tunneler 9 | 4 . . 1 2 . . . . 1 . . . . . . . 1 . . . . . . . . Hauler 12 | . 2 . 2 . 5 2 1 . . . . . . . . . . . . . . . . . . Recycler 7 | 1 . . . . . 1 . . 2 . . . . 2 . . . . . . 1 . . . . Mechanic 2 | . . . . . . 1 . . . . . . . . . . . . . . 1 . . . . Operator 11 | . 1 . . . 1 . . . . . . . . . . . . . 9 . . . . . . Drone 2 | . . . . . . . . . . . . . 1 . . . . . . . . . . . 1 Watcher 22 | . 2 . 3 . 1 2 2 . 2 . . . . 1 . . 1 1 . 2 5 . . . . Swarmer 52 | . 2 . 2 8 8 3 12 . . . . . . 4 . . . . . . 8 . . . 5 Grunt 72 | . 7 4 14 2 11 7 9 . 6 . . . 3 . . . 4 . . 2 3 . . . . Brawler 2 | . . . . . 2 . . . . . . . . . . . . . . . . . . . . Duelist 5 | . . . 1 . . 1 3 . . . . . . . . . . . . . . . . . . Protector 2 | . . . 1 . . . 1 . . . . . . . . . . . . . . . . . . Sentry 21 | . . . 4 . 7 3 1 . . . . . . . . . 6 . . . . . . . . Demolisher 1 | . . . . . . 1 . . . . . . . . . . . . . . . . . . . Specialist 1 | . . . . . . . . . . . . . . . . . . . . . . . . 1 . Hunter 2 | . . . . . . . . . 1 . . . . . . . . . . 1 . . . . . Programmer 7 | . . . . . . . . . 2 . . . . 1 . . . . . . 4 . . . . Heavy 1 | . . . . . . . . . . . . . . . . . . . . 1 . . . . . Cetus Guard 3 | . . . . . . . . . . . . . . . . . . 3 . . . . . . . Zionite 1 | . . . . 1 . . . . . . . . . . . . . . . . . . . . . Packrat 1 | . . . . . . . . . . . . . . . . . . . . . . . 1 . . Samaritan 1 | . . . . . . . . . . . . . . . . . . . . . . 1 . . . Surgeon 2 | . . . . . . . . 2 . . . . . . . . . . . . . . . . . Wasp 2 | . . . . . . . . 2 . . . . . . . . . . . . . . . . . Thug 14 | . . 1 . 1 . . . 6 . . . . . . . . 5 . 1 . . . . . . Savage 4 | . . . . . . . . . . . . . . . . . 4 . . . . . . . . Butcher 3 | . . . . . . . . 2 . . . . . . . . 1 . . . . . . . . Martyr 2 | . . . . . . . . 2 . . . . . . . . . . . . . . . . . Guerrilla 2 | . . . . . . . . . . . . . . . . . 2 . . . . . . . . Best Kill Streak 12 | 5 2 2 7 6 7 7 12 . 5 . . . 3 5 . 1 6 4 5 4 7 . . . 3 Combat Bots Only 11 | . 2 2 4 6 5 6 11 . 2 . . . 3 4 . . 6 3 . 3 4 . . . 3 Max Kills in Single Turn 6 | 1 1 1 3 2 3 4 6 1 2 . . . 1 2 . 1 4 1 2 1 3 1 1 1 1 Gunslinging 1 | . . . . . 1 . . . . . . . . . . . . . . . . . . . . Exploded 5 | . . 1 3 . 3 3 5 . 1 . . . 1 1 . . 4 . . 1 2 . . . . Melee 1 | . . . . . . . . . . . . . . . . . . . . . 1 . . . . Uniques/NPCs Destroyed . | . . . . . . . . . . . . . . . . . . . . . . . . . . Combat | -11 -10 -10 -9 -9 -8 -8 -7 -7 -7 -7 -7 -7 -6 -6 -6 -6 -6 -6 -6 -6 -5 -5 -5 -5 -4 -------- Run | Yrd Mat Min Mat Min Mat Sto Fac Was Fac Low Low Dat Pro Fac Was Fac Ext Cet Arc Hub Fac Upp Upp War Pro Hostile Shots Fired 1153 | . 65 25 44 30 95 42 136 2 57 . 2 . 26 47 . 30 168 11 . 40 98 11 2 71 151 Missed 423 | . 18 5 16 7 30 19 57 . 23 . 2 . 15 17 . 15 70 6 . 17 26 6 . 32 42 Damage Taken 11793 | . 563 274 440 222 994 417 951 429 645 . . . 164 403 . 349 810 57 . 785 1410 93 36 975 1776 Core 2454 | . 83 98 34 44 227 . 135 199 219 . . . 29 30 . 56 132 . . 164 134 59 . 212 599 Absorbed by Shields 368 | . . . . . . . . . . . . . . 48 . . 218 30 . 12 36 . . 16 8 Ignored by Resistances 262 | . . . . . . . . . . . . . . 113 . . 71 41 . . 37 . . . . Regen/Repaired (Parts) 943 | . 34 . 14 . 167 117 35 34 231 . . . . 127 . 99 . . . . 50 . . 35 . Core Remaining (%) 56 | 100 . 27 . 80 . 58 . . . . . . 16 . . . . . . 55 . . . . . Volleys Fired 942 | 10 56 26 49 28 94 51 70 247 45 2 1 . 26 31 . 12 20 5 63 24 30 9 . 8 35 Largest 2 | 2 2 1 2 2 2 2 2 2 2 1 1 . 1 2 . 1 2 1 1 1 1 1 . 1 1 Hottest 171 | 60 80 40 79 50 50 58 75 80 96 48 48 . 48 96 . 90 171 39 35 90 90 90 . 90 90 Shots Fired 1482 | 20 102 26 92 56 183 98 79 484 74 2 1 . 26 33 . 12 23 5 60 24 31 9 . 8 34 Gun 1162 | 20 102 20 84 56 178 92 12 474 45 . . . . . . . 3 . 60 . . . . . 16 Cannon 186 | . . . . . . . 39 10 15 2 1 . 17 29 . 12 2 . . 8 16 9 . 8 18 Launcher 134 | . . 6 8 . 5 6 28 . 14 . . . 9 4 . . 18 5 . 16 15 . . . . Special . | . . . . . . . . . . . . . . . . . . . . . . . . . . Kinetic 588 | 10 16 . 81 56 178 92 12 . 31 2 1 . 17 29 . . . . 60 3 . . . . . Thermal 743 | 10 86 20 3 . . . 39 484 29 . . . . . . 12 5 . . 5 15 9 . 8 18 Explosive 27 | . . 6 8 . 5 2 6 . . . . . . . . . . . . . . . . . . Electromagnetic 108 | . . . . . . 4 22 . 14 . . . 9 4 . . 18 5 . 16 16 . . . . Entropic 16 | . . . . . . . . . . . . . . . . . . . . . . . . . 16 Robot Hit Streak 22 | 5 11 7 6 5 17 16 5 22 9 . . . 6 5 . 4 8 7 8 11 3 . . . 8 Robot Miss Streak 5 | 2 4 2 3 3 3 2 3 4 5 . . . 2 2 . . 3 . 4 1 3 . . . 5 Penetration Max 1 | . . . . . . . . . . . . . . . . . . . 1 . . . . . . Secondary Targets 6 | . . . 2 2 1 1 . . . . . . . . . . . . . . . . . . . Max Gunslinging Chain 1 | . . . 1 1 1 1 . . . . . . . . . . . . . . . . . . . Shots Hit Robots 941 | 13 64 20 58 33 137 50 28 351 47 4 . . 7 16 2 1 19 2 36 14 25 1 1 1 11 Core Hits 620 | 7 30 15 45 16 62 37 49 160 47 . . . 7 11 . 1 61 10 16 12 26 1 1 . 6 Critical Kills 6 | . . . 1 . . . . . . . . . . . . . . . 5 . . . . . . Critical Parts Destroyed 6 | . . . . 1 . . . . . . . . . . . . . . 5 . . . . . . Critical Strikes 19 | . . . 1 1 . . . . . . . . . 5 . . . . 10 . 2 . . . . Destroy 12 | . . . 1 1 . . . . . . . . . . . . . . 10 . . . . . . Blast 5 | . . . . . . . . . . . . . . 5 . . . . . . . . . . . Impale 2 | . . . . . . . . . . . . . . . . . . . . . 2 . . . . Melee Attacks 104 | . . . . . . . 1 1 6 7 . . . 5 2 12 . . . . 60 6 2 2 . Impact 34 | . . . . . . . 1 1 6 7 . . . 5 2 12 . . . . . . . . . Slashing . | . . . . . . . . . . . . . . . . . . . . . . . . . . Piercing 70 | . . . . . . . . . . . . . . . . . . . . . 60 6 2 2 . Sneak Attacks 8 | . . . . . . . . . 1 . . . . 1 . . . . . . 3 1 1 1 . Combat Hostiles . | . . . . . . . . . . . . . . . . . . . . . . . . . . Follow-up Attacks . | . . . . . . . . . . . . . . . . . . . . . . . . . . Damage Inflicted 28377 | 125 684 420 1649 590 2915 2177 3251 5220 1608 85 . . 579 685 240 33 3220 382 1051 773 1881 115 61 90 543 Guns 13213 | 125 684 162 1007 590 2435 799 121 5220 445 . . . . . . . 71 . 1051 . . . . . 503 Cannons 1092 | . . . . . . . 273 . 206 . . . 62 408 . 33 70 . . . . . . . 40 Explosions 12241 | . . 258 642 . 480 1366 2857 . 777 . . . 517 221 . . 3079 382 . 708 954 . . . . Melee 1742 | . . . . . . . . . 180 85 . . . 56 240 . . . . . 927 115 61 78 . Ramming 89 | . . . . . . 12 . . . . . . . . . . . . . 65 . . . 12 . Kinetic 6991 | 61 60 . 956 590 2435 799 121 . 448 . . . 62 408 . . . . 1051 . . . . . . Thermal 9437 | 64 624 162 51 . . 527 1474 5220 240 . . . 112 37 . 33 606 . . 53 194 . . . 40 Explosive 2217 | . . 258 642 . 480 336 501 . . . . . . . . . . . . . . . . . . Electromagnetic 7398 | . . . . . . 503 1155 . 740 . . . 405 184 . . 2614 382 . 655 760 . . . . Impact 561 | . . . . . . . . . 180 85 . . . 56 240 . . . . . . . . . . Slashing . | . . . . . . . . . . . . . . . . . . . . . . . . . . Piercing 1181 | . . . . . . . . . . . . . . . . . . . . . 927 115 61 78 . Entropic 503 | . . . . . . . . . . . . . . . . . . . . . . . . . 503 Highest Corruption 24 | . . . . . . 4 . . 2 1 1 1 15 . . . 1 1 11 9 24 24 24 24 16 Average Corruption 7 | . . . . . . 4 . . 1 1 1 1 1 . . . 1 1 3 6 13 24 24 11 8 Corruption Purged 18 | . . . . . . . . . 2 . . . . . . . . . 11 . . . . . 5 Corruption Blocked . | . . . . . . . . . . . . . . . . . . . . . . . . . . Effects 189 | . . . . . . . . . 7 4 2 . 2 . . . 12 3 18 . 74 33 12 4 18 Message Errors 49 | . . . . . . . . . . 2 . . . . . . 6 1 2 . 20 9 2 2 5 Matter Fused 62 | . . . . . . . . . 3 . . . 2 . . . 4 . 5 . 25 12 3 . 8 Heat Flow Errors 17 | . . . . . . . . . 1 1 . . . . . . . 1 1 . 8 3 2 . . Energy Discharges 24 | . . . . . . . . . 1 . . . . . . . 1 . 4 . 7 4 5 . 2 Parts Rejected 3 | . . . . . . . . . . . . . . . . . . . . . 2 . . 1 . Parts Fused 2 | . . . . . . . . . . 1 . . . . . . . . . . . 1 . . . Data Loss (minor) 15 | . . . . . . . . . . . . . . . . . 1 1 3 . 9 1 . . . Data Loss (major) 4 | . . . . . . . . . 1 . 1 . . . . . . . . . . 1 . . 1 Misfires 3 | . . . . . . . . . 1 . . . . . . . . . . . 1 1 . . . Alerts 4 | . . . . . . . . . . . 1 . . . . . . . . . 2 . . 1 . Misdirections 1 | . . . . . . . . . . . . . . . . . . . . . . . . . 1 Weapon Failures 5 | . . . . . . . . . . . . . . . . . . . 3 . . 1 . . 1 Overload Shots . | . . . . . . . . . . . . . . . . . . . . . . . . . . Overflow Damage 888 | . . . 21 . 4 21 250 . 60 23 . . 46 66 88 . 41 . . 89 141 . . 38 . Projectiles 44 | . . . . . . . 7 . 14 . . . 22 1 . . . . . . . . . . . Explosions 546 | . . . 21 . 4 21 243 . 32 . . . 24 24 . . 41 . . 59 77 . . . . Melee 298 | . . . . . . . . . 14 23 . . . 41 88 . . . . 30 64 . . 38 . Knockbacks 11 | . . . . . . . . . 5 . . . 1 5 . . . . . . . . . . . Impact 3 | . . . . . . . . . 2 . . . . 1 . . . . . . . . . . . Kinetic 8 | . . . . . . . . . 3 . . . 1 4 . . . . . . . . . . . Secondary . | . . . . . . . . . . . . . . . . . . . . . . . . . . Self-Inflicted Damage 741 | . . 26 70 . 18 6 9 . 29 . . . 23 110 . . 240 . . 148 56 . . 6 . Shots 41 | . . 2 2 . 1 . 1 . 2 . . . 2 3 . . 19 . . 5 4 . . . . Rammed 3 | . . . . . . 1 . . . . . . . . . . . . . 1 . . . 1 . Targets Rammed 3 | . . . . . . 1 . . . . . . . . . . . . . 1 . . . 1 . Kicked . | . . . . . . . . . . . . . . . . . . . . . . . . . . Crushed . | . . . . . . . . . . . . . . . . . . . . . . . . . . Highest Temperature 318 | 40 144 6 29 4 34 . 198 264 125 107 4 . 40 42 . 176 308 100 252 73 305 207 318 274 88 Average Temperature 68 | 19 51 2 9 4 12 . 46 86 17 39 3 . 14 10 . 78 97 63 138 25 61 56 61 68 34 Received Heat Transfer 2055 | . 213 165 201 36 477 126 189 . 171 . . . 39 . . 36 176 . . 33 36 21 . 70 66 Effects 6 | . . . . . . . . . . . . . . . . . . . 1 . 3 . . 2 . Interference 6 | . . . . . . . . . . . . . . . . . . . 1 . 3 . . 2 . Siege Activations . | . . . . . . . . . . . . . . . . . . . . . . . . . . Robots Corrupted 24 | . . . . . . . 2 . 3 . . . 1 1 1 . 9 3 . 2 2 . . . . Combat Hostiles 15 | . . . . . . . 2 . 1 . . . 1 . 1 . 4 3 . 1 2 . . . . Parts Fried 37 | . . . . . . 1 6 . 3 . . . 1 4 . . 11 1 . 8 2 . . . . Impact Corruptions 9 | . . . . . . . . . 2 2 . . . 1 2 . . . . 2 . . . . . Robots Melted 2 | . . . . . . . . 2 . . . . . . . . . . . . . . . . . Combat Hostiles . | . . . . . . . . . . . . . . . . . . . . . . . . . . Parts Melted 15 | . 6 1 . . . 1 1 3 1 . . . . . . . 1 . . . 1 . . . . Heat Transferred 20433 | 150 1425 375 111 . . 500 1095 14911 655 . . . 150 50 . 50 761 . . 50 150 . . . . Parts Sabotaged . | . . . . . . . . . . . . . . . . . . . . . . . . . . Parts Stolen . | . . . . . . . . . . . . . . . . . . . . . . . . . . Parts Stripped . | . . . . . . . . . . . . . . . . . . . . . . . . . . Power Chain Reactions 21 | . . . . . . 2 5 . 2 . . . 1 2 . . 6 . . 1 2 . . . . Alert | -11 -10 -10 -9 -9 -8 -8 -7 -7 -7 -7 -7 -7 -6 -6 -6 -6 -6 -6 -6 -6 -5 -5 -5 -5 -4 ------- Run | Yrd Mat Min Mat Min Mat Sto Fac Was Fac Low Low Dat Pro Fac Was Fac Ext Cet Arc Hub Fac Upp Upp War Pro Peak Influence 1338 | 25 176 70 594 390 448 764 1338 350 132 . . . . 1001 126 163 464 304 247 992 824 . . . . Initial 1000 | . 16 . 24 175 60 125 347 332 . . . . . 1000 126 88 13 156 41 . 463 . . . . Average 275 | 10 74 33 357 272 267 255 774 116 58 . . . . 705 126 67 296 268 114 372 356 . . . . Maximum Alert Level 4 | . . . 2 1 2 3 4 1 . . . . . 3 . . 2 1 1 3 3 . . . . Low Security (%) 49 | 100 100 100 22 40 18 56 . 74 100 . . . . . 100 100 9 23 93 40 35 . . . . Level 1 27 | . . . 26 59 76 28 9 25 . . . . . 4 . . 79 76 6 7 26 . . . . Level 2 14 | . . . 50 . 4 7 42 . . . . . . 47 . . 11 . . 50 19 . . . . Level 3 6 | . . . . . . 7 23 . . . . . . 47 . . . . . 2 18 . . . . Level 4 1 | . . . . . . . 24 . . . . . . . . . . . . . . . . . . Level 5 . | . . . . . . . . . . . . . . . . . . . . . . . . . . High Security . | . . . . . . . . . . . . . . . . . . . . . . . . . . Max Security . | . . . . . . . . . . . . . . . . . . . . . . . . . . Squads Dispatched 56 | . 2 . 4 . 2 4 11 . 9 . . . . 3 . 3 1 . . 8 9 . . . . Investigation 24 | . 1 . 3 . 2 1 7 . 3 . . . . 1 . 2 . . . . 4 . . . . Extermination 8 | . . . . . . . 1 . 2 . . . . 1 . 1 . . . 1 2 . . . . Reinforcement 13 | . 1 . . . . . 2 . 1 . . . . 1 . . 1 . . 7 . . . . . Assault 7 | . . . 1 . . 2 1 . . . . . . . . . . . . . 3 . . . . Garrison 4 | . . . . . . 1 . . 3 . . . . . . . . . . . . . . . . Intercept . | . . . . . . . . . . . . . . . . . . . . . . . . . . Searches Triggered 2 | . . . . . . . . . . . . . . 2 . . . . . . . . . . . Data Miner Redirects 1 | . . . . . . . . . . . . . . . . . . . . . 1 . . . . Construction Impeded 3 | . . . . . . . . . . . . . . 1 . . 1 . . 1 . . . . . Haulers Reinforced 1 | . . . . . . . 1 . . . . . . . . . . . . . . . . . . Active Scanning Responses . | . . . . . . . . . . . . . . . . . . . . . . . . . . Cargo Convoy Interrupts . | . . . . . . . . . . . . . . . . . . . . . . . . . . Stealth | -11 -10 -10 -9 -9 -8 -8 -7 -7 -7 -7 -7 -7 -6 -6 -6 -6 -6 -6 -6 -6 -5 -5 -5 -5 -4 --------- Run | Yrd Mat Min Mat Min Mat Sto Fac Was Fac Low Low Dat Pro Fac Was Fac Ext Cet Arc Hub Fac Upp Upp War Pro Distress Signals 18 | . 1 . 3 . 3 1 1 . 2 . . . . 1 . . 1 1 . 2 1 . . . 1 Communications Jammed . | . . . . . . . . . . . . . . . . . . . . . . . . . . Distress Signals . | . . . . . . . . . . . . . . . . . . . . . . . . . . Times Spotted 427 | . 16 4 42 11 37 31 44 6 24 . 1 . 14 17 1 11 32 3 21 19 36 6 1 22 28 Peak Tracking Total 10 | . 3 2 6 4 5 9 8 5 3 . 1 . 4 10 1 7 8 5 . 6 7 6 2 10 10 Tactical Retreats 41 | . 1 . 2 1 . 1 6 . 3 . 1 . 3 . . 4 2 . . 3 7 2 . . 5 Traps | -11 -10 -10 -9 -9 -8 -8 -7 -7 -7 -7 -7 -7 -6 -6 -6 -6 -6 -6 -6 -6 -5 -5 -5 -5 -4 ------- Run | Yrd Mat Min Mat Min Mat Sto Fac Was Fac Low Low Dat Pro Fac Was Fac Ext Cet Arc Hub Fac Upp Upp War Pro Traps Triggered 20 | . 1 . 1 . . 1 2 . . . . . . 1 . 2 8 . . 1 3 . . . . Indirectly 1 | . . . . . . . 1 . . . . . . . . . . . . . . . . . . Trap Hack Attempts . | . . . . . . . . . . . . . . . . . . . . . . . . . . Triggered . | . . . . . . . . . . . . . . . . . . . . . . . . . . Disarmed . | . . . . . . . . . . . . . . . . . . . . . . . . . . Reprogrammed . | . . . . . . . . . . . . . . . . . . . . . . . . . . Reused . | . . . . . . . . . . . . . . . . . . . . . . . . . . Traps Extracted . | . . . . . . . . . . . . . . . . . . . . . . . . . . Installed . | . . . . . . . . . . . . . . . . . . . . . . . . . . Triggered 12 | . . . . . . . . . . . . . . . . . . . . . . . . 12 . Machines | -11 -10 -10 -9 -9 -8 -8 -7 -7 -7 -7 -7 -7 -6 -6 -6 -6 -6 -6 -6 -6 -5 -5 -5 -5 -4 ---------- Run | Yrd Mat Min Mat Min Mat Sto Fac Was Fac Low Low Dat Pro Fac Was Fac Ext Cet Arc Hub Fac Upp Upp War Pro Machines Disabled 57 | . . . 3 4 . 5 9 . 1 . . . . . . . 2 . 7 19 7 . . . . Max in Single Turn 15 | . . . 2 2 . 1 6 . 1 . . . . . . . 1 . 1 15 6 . . . . Garrison Access 8 | . . . . . . 1 1 . . . . . . 3 . . . . . 1 2 . . . . Network Hub 1 | . . . . . . . . . . . . . . . . . . . . 1 . . . . . Machines Repaired . | . . . . . . . . . . . . . . . . . . . . . . . . . . Machines Dismantled . | . . . . . . . . . . . . . . . . . . . . . . . . . . Machines Sabotaged . | . . . . . . . . . . . . . . . . . . . . . . . . . . Overloaded Fab Kills . | . . . . . . . . . . . . . . . . . . . . . . . . . . Hacking | -11 -10 -10 -9 -9 -8 -8 -7 -7 -7 -7 -7 -7 -6 -6 -6 -6 -6 -6 -6 -6 -5 -5 -5 -5 -4 --------- Run | Yrd Mat Min Mat Min Mat Sto Fac Was Fac Low Low Dat Pro Fac Was Fac Ext Cet Arc Hub Fac Upp Upp War Pro Machines Accessed 141 | . 10 1 10 . 12 14 22 . 16 1 . 4 . 11 . 15 5 . . 5 13 . . 2 . Terminals 75 | . 7 . 7 . 9 10 10 . 8 . . . . 3 . 7 4 . . 4 6 . . . . Fabricators 15 | . . . . . . . 6 . 3 . . . . 1 . 2 . . . . 3 . . . . Repair Stations 16 | . 1 . 1 . 1 2 2 . 3 . . . . 2 . 3 . . . . 1 . . . . Recycling Units 15 | . 2 . 1 . 2 1 2 . 1 . . . . 1 . 3 1 . . . 1 . . . . Scanalyzers 3 | . . . 1 . . . 1 . . . . . . 1 . . . . . . . . . . . Garrison Access 9 | . . . . . . 1 1 . 1 . . . . 3 . . . . . 1 2 . . . . Total Hacks 350 | . 23 1 32 . 37 32 48 . 32 1 . 27 . 21 . 34 9 . . 10 38 . . 5 . Successful 208 | . 11 1 16 . 18 19 25 . 24 1 . 27 . 15 . 14 4 . . 6 22 . . 5 . Failed 141 | . 11 . 16 . 19 13 23 . 8 . . . . 6 . 20 5 . . 4 16 . . . . Catastrophic 22 | . 2 . 1 . 2 3 4 . 2 . . . . 1 . . 2 . . 1 4 . . . . Database Lockouts 1 | . 1 . . . . . . . . . . . . . . . . . . . . . . . . Manual 123 | . 13 . 11 . 17 7 18 . 14 . . . . 4 . 7 5 1 . 4 21 . . 1 . Terminals 187 | . 17 . 24 . 28 21 25 . 14 . . . . 5 . 15 7 . . 8 23 . . . . Fabricators 41 | . . . . . . . 12 . 10 . . . . 3 . 6 . . . . 10 . . . . Repair Stations 39 | . 2 . 2 . 5 6 5 . 5 . . . . 4 . 8 . . . . 2 . . . . Recycling Units 27 | . 4 . 3 . 4 3 3 . 1 . . . . 1 . 5 2 . . . 1 . . . . Scanalyzers 8 | . . . 3 . . . 2 . . . . . . 3 . . . . . . . . . . . Garrison Access 14 | . . . . . . 2 1 . 2 . . . . 5 . . . . . 2 2 . . . . Terminal Hacks 90 | . 4 1 7 . 7 12 8 . 4 1 . 27 . 1 . 2 2 . . 3 6 . . 5 . Record 16 | . . . . . . . . . . . . 11 . . . . . . . 1 . . . 4 . Part Schematic 14 | . 1 . . . . 1 . . 1 . . 9 . . . 1 . . . . 1 . . . . Robot Schematic 4 | . . . . . . . . . . . . 4 . . . . . . . . . . . . . Robot Analysis 4 | . . . 2 . 2 . . . . . . . . . . . . . . . . . . . . Prototype ID Bank 6 | . 2 . . . 1 . . . . . . 3 . . . . . . . . . . . . . Open Door 7 | . . 1 . . . 3 . . . 1 . . . . . 1 . . . . . . . 1 . Branch Access Points 2 | . . . . . . . 1 . 1 . . . . . . . . . . . . . . . . Machine Index 1 | . . . . . . . . . . . . . . . . . . . . . 1 . . . . Terminal Index 6 | . 1 . 1 . 1 1 1 . 1 . . . . . . . . . . . . . . . . Garrison Index 1 | . . . . . . 1 . . . . . . . . . . . . . . . . . . . Alert Level 2 | . . . . . . . 1 . . . . . . . . . . . . . 1 . . . . Unreport Threat 11 | . . . 2 . 2 3 2 . . . . . . 1 . . 1 . . . . . . . . Locate Traps 8 | . . . 1 . 1 3 1 . . . . . . . . . 1 . . . 1 . . . . Recall Investigation 1 | . . . . . . . . . 1 . . . . . . . . . . . . . . . . Recall Extermination 1 | . . . . . . . 1 . . . . . . . . . . . . . . . . . . Recall Assault 1 | . . . . . . . . . . . . . . . . . . . . . 1 . . . . Registered Components 1 | . . . . . . . . . . . . . . . . . . . . . 1 . . . . Zone Layout 4 | . . . 1 . . . 1 . . . . . . . . . . . . 2 . . . . . Fabricator Hacks 22 | . . . . . . . 5 . 7 . . . . 2 . 3 . . . . 5 . . . . Network Status 3 | . . . . . . . 1 . 1 . . . . . . 1 . . . . . . . . . Load Schematic 14 | . . . . . . . 3 . 4 . . . . 1 . 2 . . . . 4 . . . . Build 5 | . . . . . . . 1 . 2 . . . . 1 . . . . . . 1 . . . . Repair Station Hacks 28 | . 2 . 2 . 4 4 3 . 4 . . . . 4 . 3 . . . . 2 . . . . Scan Component 15 | . 1 . 1 . 2 2 2 . 2 . . . . 2 . 2 . . . . 1 . . . . Repair 13 | . 1 . 1 . 2 2 1 . 2 . . . . 2 . 1 . . . . 1 . . . . Recycling Unit Hacks 13 | . 1 . 1 . 2 . 1 . 1 . . . . 1 . 4 1 . . . 1 . . . . Retrieve Components 13 | . 1 . 1 . 2 . 1 . 1 . . . . 1 . 4 1 . . . 1 . . . . Scanalyzer 7 | . . . 3 . . . 2 . . . . . . 2 . . . . . . . . . . . Insert Component 3 | . . . 1 . . . 1 . . . . . . 1 . . . . . . . . . . . Analyze 4 | . . . 2 . . . 1 . . . . . . 1 . . . . . . . . . . . Garrison Access Hacks 8 | . . . . . . 1 1 . . . . . . 3 . . . . . 1 2 . . . . Seal Access 8 | . . . . . . 1 1 . . . . . . 3 . . . . . 1 2 . . . . Unauthorized Hacks 40 | . 4 . 3 . 5 2 5 . 8 . . . . 2 . 2 1 . . 2 6 . . . . Terminals 22 | . 3 . 2 . 3 1 1 . 5 . . . . 1 . 1 1 . . 2 2 . . . . Assimilate 6 | . . . . . . . 1 . 3 . . . . 1 . . 1 . . . . . . . . Botnet 10 | . 2 . 1 . 2 . . . 1 . . . . . . 1 . . . 2 1 . . . . Disrupt 1 | . . . . . . 1 . . . . . . . . . . . . . . . . . . . Operators 5 | . 1 . 1 . 1 . . . 1 . . . . . . . . . . . 1 . . . . Fabricators 12 | . . . . . . . 3 . 3 . . . . 1 . 1 . . . . 4 . . . . Prioritize 1 | . . . . . . . . . . . . . . . . . . . . . 1 . . . . Recompile 11 | . . . . . . . 3 . 3 . . . . 1 . 1 . . . . 3 . . . . Repair Stations . | . . . . . . . . . . . . . . . . . . . . . . . . . . Recycling Units 6 | . 1 . 1 . 2 1 1 . . . . . . . . . . . . . . . . . . Tunnel 6 | . 1 . 1 . 2 1 1 . . . . . . . . . . . . . . . . . . Scanalyzers . | . . . . . . . . . . . . . . . . . . . . . . . . . . Garrison Access . | . . . . . . . . . . . . . . . . . . . . . . . . . . Data Cores Recovered . | . . . . . . . . . . . . . . . . . . . . . . . . . . Used . | . . . . . . . . . . . . . . . . . . . . . . . . . . Hacking Detections 96 | . 7 . 6 . 9 10 18 . 9 . . . . 6 . 12 5 . . 5 9 . . . . Full Trace Events 4 | . . . . . . . 2 . . . . . . . . 1 . . . . 1 . . . . Feedback Events 1 | . . . . . . . . . . . . . . . . 1 . . . . . . . . . Hackware Fried 1 | . . . . . . . . . . . . . . . . 1 . . . . . . . . . Feedback Blocked . | . . . . . . . . . . . . . . . . . . . . . . . . . . Robot Schematics Acquired 4 | . . . . . . . . . . . . 4 . . . . . . . . . . . . . Robots Built . | . . . . . . . . . . . . . . . . . . . . . . . . . . Authchips . | . . . . . . . . . . . . . . . . . . . . . . . . . . Time . | . . . . . . . . . . . . . . . . . . . . . . . . . . Total Robot Build Rating . | . . . . . . . . . . . . . . . . . . . . . . . . . . Part Schematics Acquired 17 | . 1 . 1 . . 1 1 . 1 . . 9 . 1 . 1 . . . . 1 . . . . Parts Built 7 | . . . . . . . 1 . 3 . . . . 2 . . . . . . 1 . . . . Authchips 3 | . . . . . . . . . 2 . . . . . . . . . . . 1 . . . . Time 347 | . . . . . . . 17 . 72 . . . . 106 . . . . . . 152 . . . . Total Part Build Rating 27 | . . . . . . . 1 . 9 . . . . 12 . . . . . . 5 . . . . Parts Repaired 12 | . 1 . 1 . 2 2 1 . 1 . . . . 2 . 1 . . . . 1 . . . . Time 505 | . 26 . 26 . 70 70 25 . 76 . . . . 66 . 47 . . . . 99 . . . . Parts Recycled . | . . . . . . . . . . . . . . . . . . . . . . . . . . Recycled Matter . | . . . . . . . . . . . . . . . . . . . . . . . . . . Retrieved Matter . | . . . . . . . . . . . . . . . . . . . . . . . . . . Retrieved Components 36 | . . . 1 . . . 8 . 10 . . . . 3 . 3 9 . . . 2 . . . . Parts Scanalyzed 3 | . . . 1 . . . 1 . . . . . . 1 . . . . . . . . . . . Part Schematics Acquired 3 | . . . 1 . . . 1 . . . . . . 1 . . . . . . . . . . . Parts Damaged . | . . . . . . . . . . . . . . . . . . . . . . . . . . Bothacking | -11 -10 -10 -9 -9 -8 -8 -7 -7 -7 -7 -7 -7 -6 -6 -6 -6 -6 -6 -6 -6 -5 -5 -5 -5 -4 ------------ Run | Yrd Mat Min Mat Min Mat Sto Fac Was Fac Low Low Dat Pro Fac Was Fac Ext Cet Arc Hub Fac Upp Upp War Pro Used RIF Installer . | . . . . . . . . . . . . . . . . . . . . . . . . . . Robots Hacked . | . . . . . . . . . . . . . . . . . . . . . . . . . . Non-combat . | . . . . . . . . . . . . . . . . . . . . . . . . . . Combat . | . . . . . . . . . . . . . . . . . . . . . . . . . . Robot Hacks Applied . | . . . . . . . . . . . . . . . . . . . . . . . . . . Relay Couplers Released . | . . . . . . . . . . . . . . . . . . . . . . . . . . Fabnet Peak Effective % . | . . . . . . . . . . . . . . . . . . . . . . . . . . Robots Rewired 27 | . . . . . . . . . . . . . . . . . 23 . . . . . . 4 . Allies Hacked 1 | . . . . . . . . . . . . . . 1 . . . . . . . . . . . Hacks Repelled . | . . . . . . . . . . . . . . . . . . . . . . . . . . Allies | -11 -10 -10 -9 -9 -8 -8 -7 -7 -7 -7 -7 -7 -6 -6 -6 -6 -6 -6 -6 -6 -5 -5 -5 -5 -4 -------- Run | Yrd Mat Min Mat Min Mat Sto Fac Was Fac Low Low Dat Pro Fac Was Fac Ext Cet Arc Hub Fac Upp Upp War Pro Total Allies 79 | . . 4 . 2 . 12 1 19 3 . . . 1 1 . . 27 5 . . . . . 4 . Largest Group 18 | . . 3 2 2 . 10 7 18 2 2 2 2 3 3 . . 15 14 14 8 . . . 4 . Highest-Rated Group 859 | . . 40 32 48 . 173 155 444 36 36 36 36 132 46 . . 561 859 859 514 . . . 180 . Highest-Rated Ally 159 | . . 31 16 31 . 31 31 35 26 26 26 26 96 26 . . 159 147 141 96 . . . 49 . Total Orders 21 | . . 3 12 . . . . . . . . . . 2 . . . 2 2 . . . . . . STAY 3 | . . . . . . . . . . . . . . 1 . . . 1 1 . . . . . . FOLLOW 3 | . . . . . . . . . . . . . . 1 . . . 1 1 . . . . . . EXPLORE 10 | . . 2 8 . . . . . . . . . . . . . . . . . . . . . . RETURN 5 | . . 1 4 . . . . . . . . . . . . . . . . . . . . . . Ally Attacks 761 | . . 7 193 . . 97 49 109 . . . . 3 . . . 162 13 33 74 . . . 21 . Total Damage 15094 | . . 67 1061 . . 1362 712 4586 . . . . 138 . . . 3451 253 917 1903 . . . 644 . Kills 94 | . . . 18 . . 11 9 10 . . . . 1 . . . 26 1 4 10 . . . 4 . Allies Corrupted 2 | . . . . . . . . . . . . . . . . . 1 . . 1 . . . . . Allies Melted 3 | . . . . . . . . 1 . . . . 1 . . . . . . . . . . 1 . Intel | -11 -10 -10 -9 -9 -8 -8 -7 -7 -7 -7 -7 -7 -6 -6 -6 -6 -6 -6 -6 -6 -5 -5 -5 -5 -4 ------- Run | Yrd Mat Min Mat Min Mat Sto Fac Was Fac Low Low Dat Pro Fac Was Fac Ext Cet Arc Hub Fac Upp Upp War Pro Robot Analysis Total 4 | . . . 2 . 2 . . . . . . . . . . . . . . . . . . . . Derelict Logs Recovered 11 | . . 2 . 3 . . . . . . 1 . . . . . . . . . . 1 2 . 2 Drone Launches 53 | . . 3 50 . . . . . . . . . . . . . . . . . . . . . . Drone Recoveries 52 | . . 3 49 . . . . . . . . . . . . . . . . . . . . . . Exploration | -11 -10 -10 -9 -9 -8 -8 -7 -7 -7 -7 -7 -7 -6 -6 -6 -6 -6 -6 -6 -6 -5 -5 -5 -5 -4 ------------- Run | Yrd Mat Min Mat Min Mat Sto Fac Was Fac Low Low Dat Pro Fac Was Fac Ext Cet Arc Hub Fac Upp Upp War Pro Turns Passed 23398 | 113 1334 794 1768 833 1435 797 1250 1579 1558 509 328 53 388 838 115 825 1835 406 819 382 2802 745 289 1179 424 Spaces Moved 18472 | 58 959 512 1022 541 934 450 1663 471 1453 693 582 91 283 1070 166 1194 1063 139 381 452 1967 558 320 972 478 Core 84 | 12 . . . . . . . . . . . . . . . . . . . 1 51 11 3 . 6 Treads 122 | . . . . . . . . . . . . . . . . . . . . . 122 . . . . Legs . | . . . . . . . . . . . . . . . . . . . . . . . . . . Wheels 4800 | 46 959 512 1022 541 934 450 . . . . . . . . . . . . . . 336 . . . . Hover 13466 | . . . . . . . 1663 471 1453 693 582 91 283 1070 166 1194 1063 139 381 451 1458 547 317 972 472 Flight . | . . . . . . . . . . . . . . . . . . . . . . . . . . Fastest Speed 30 | 50 80 130 135 135 102 115 46 46 48 52 52 52 52 48 58 58 57 57 48 48 30 35 35 30 37 Average Speed 79 | 102 102 137 143 139 111 115 51 139 64 52 52 52 108 52 58 58 80 85 74 52 86 54 44 39 56 Slowest Speed 1150 | 200 130 140 155 155 150 128 170 360 135 52 52 52 120 108 58 58 139 113 115 400 1150 1000 1000 108 1050 Overloaded Moves . | . . . . . . . . . . . . . . . . . . . . . . . . . . Propulsion Burnouts . | . . . . . . . . . . . . . . . . . . . . . . . . . . Robots Hopped . | . . . . . . . . . . . . . . . . . . . . . . . . . . Cave-ins Triggered 2 | . . . . . . . . . . . . . . . . . . . . . . . . 2 . Exploration Rate (%) 64 | 4 97 99 87 96 66 78 45 87 37 70 73 69 52 27 80 35 98 57 86 44 36 72 52 87 49 Regions Visited 25 Branch Regions 15 Pre-discovered Areas 10 | . 1 . 1 2 2 1 1 . . . . 1 . . . . . . . . . 1 . . . Known Exits Taken 16 | . . . . . 1 1 . . 1 1 1 1 1 . . 1 1 1 1 1 1 1 1 1 . Unknown Exits Taken 5 | 1 1 1 1 1 . . . . . . . . . . . . . . . . . . . . . Scrap Searched 11 | . . 3 . 1 . . . . . 1 . . 1 . . . . . . . . 2 2 . 1 Spaces Dug 101 | . . . . . . . 5 4 2 3 1 . 2 7 . 21 . . . 5 29 8 1 6 7 Terrain Destroyed 657 | . . 32 67 . 44 29 83 5 14 3 1 . 8 24 . 22 23 . 12 170 73 14 1 9 23 Melee 53 | . . . . . . . 1 1 2 2 . . . 4 . 11 . . . . 25 5 1 1 . Projectile 123 | . . . . . . . 10 4 6 1 1 . 8 9 . 11 . . 12 6 15 9 . 8 23 AOE 481 | . . 32 67 . 44 29 72 . 6 . . . . 11 . . 23 . . 164 33 . . . . Terrain Rammed . | . . . . . . . . . . . . . . . . . . . . . . . . . . Walls Destroyed . | . . . . . . . . . . . . . . . . . . . . . . . . . . Machines Disabled . | . . . . . . . . . . . . . . . . . . . . . . . . . . Actions | -11 -10 -10 -9 -9 -8 -8 -7 -7 -7 -7 -7 -7 -6 -6 -6 -6 -6 -6 -6 -6 -5 -5 -5 -5 -4 --------- Run | Yrd Mat Min Mat Min Mat Sto Fac Was Fac Low Low Dat Pro Fac Was Fac Ext Cet Arc Hub Fac Upp Upp War Pro Total 25725 | 89 1208 573 1262 589 1230 666 1989 904 1982 825 605 96 335 1299 181 1297 2026 419 849 567 2925 980 463 1763 603 Wait 4987 | 9 170 21 118 17 137 137 182 161 405 121 23 4 18 146 12 58 480 265 343 78 766 399 140 705 72 Move 18447 | 57 958 511 1021 540 933 449 1663 470 1452 692 581 90 282 1070 165 1193 1062 138 380 451 1966 557 319 969 478 Hop . | . . . . . . . . . . . . . . . . . . . . . . . . . . Pick Up 160 | 6 9 3 22 . 14 2 11 14 17 . . . 2 8 1 5 18 3 6 . 8 2 . 8 1 Fast Attach 88 | 7 1 1 2 . 7 2 3 5 7 . . 1 . 3 . 2 4 . 9 2 22 1 . 6 3 Attach 74 | . 2 4 3 . 1 . 14 1 6 . . . . 5 . 2 13 . 2 . 11 . . 3 7 Detach 44 | . . . . . . . 5 . 2 . . . . 2 . 3 9 . 5 . 8 1 . 3 6 Swap 247 | . 7 6 18 2 19 14 17 2 23 2 . . 5 19 . 4 13 5 23 9 35 3 2 18 1 Drop 210 | . 5 1 29 2 25 6 23 3 19 . . 1 2 9 1 6 17 3 18 2 11 2 . 25 . Fire 942 | 10 56 26 49 28 94 51 70 247 45 2 1 . 26 31 . 12 20 5 63 24 30 9 . 8 35 Melee 104 | . . . . . . . 1 1 6 7 . . . 5 2 12 . . . . 60 6 2 2 . Ram 3 | . . . . . . 1 . . . . . . . . . . . . . 1 . . . 1 . Kick . | . . . . . . . . . . . . . . . . . . . . . . . . . . Crush . | . . . . . . . . . . . . . . . . . . . . . . . . . . Escape Stasis 114 | . . . . . . . . . . . . . . . . . 104 . . . 8 . . 2 . Rewire 304 | . . . . . . 4 . . . . . . . 1 . . 286 . . . . . . 13 . Trap . | . . . . . . . . . . . . . . . . . . . . . . . . . . Miscellaneous 1 | . . . . . . . . . . 1 . . . . . . . . . . . . . . . Route ------- -11/Scrapyard -10/Materials (discovered 5 exits: *Mat x3 / *Min x2) -10/Mines (discovered 4 exits: *Mat x2 / [*Exi] / Sub) -9/Materials (discovered 3 exits: *Mat x2 / [*Min]) -9/Mines (discovered 2 exits: *Mat x2) -8/Materials (discovered 4 exits: *Fac x2 / *Sto x2) -8/Storage -7/Factory (discovered 2 exits: *Low x2) -7/Waste -7/Factory (discovered 3 exits: *Fac / *Low x2) -7/Lower Caves -7/Lower Caves -7/Data Miner -6/Proximity Caves -6/Factory (discovered 2 exits: *Fac / Low) -6/Waste -6/Factory (discovered 4 exits: *Fac x2 / *Low / *Ext) -6/Extension (discovered 2 exits: *Fac / *Cet) -6/Cetus -6/Archives (discovered 3 exits: *Fac / *Hub x2) -6/Hub_04(d) (discovered 2 exits: *Fac x2) -5/Factory (discovered 2 exits: *Fac / *Upp) -5/Upper Caves -5/Upper Caves (discovered 2 exits: *Fac / *War) -5/Warlord -4/Proximity Caves History --------- Turn | Location | Event 17 | -11/Scrapyard | Discovered new exit (range 16) 114 | -11/Scrapyard | Entered Materials 128 | -10/Materials | Discovered new exit (range 8) 140 | -10/Materials | Discovered new exit (range 14) 311 | -10/Materials | Build established: Mutant 581 | -10/Materials | Repaired Wheel 688 | -10/Materials | Central database locked down 986 | -10/Materials | Discovered new exit (range 7) 1042 | -10/Materials | Discovered new exit (range 10) 1095 | -10/Materials | Discovered new exit (range 16) 1448 | -10/Materials | Entered Mines 1554 | -10/Mines | Discovered new exit (range 7) 1572 | -10/Mines | Received a Mining Laser from a helpful Derelict 1661 | -10/Mines | Core integrity fell below 50% 1699 | -10/Mines | Lost 4 parts (1p2n1w) 1791 | -10/Mines | Learned Materials emergency access door positions 1816 | -10/Mines | Assembled infested the area 1830 | -10/Mines | Received a Rocket Launcher from a helpful Derelict 1852 | -10/Mines | Assisted by bots powering up and referring to "LRC-V3" 1956 | -10/Mines | Build established: Scavenger-Mutant 2160 | -10/Mines | Found the Drone Emporium 2164 | -10/Mines | Identified exit to Subcaves 2180 | -10/Mines | Found Prototype Device 2180 | -10/Mines | Identified Thief Drone Bay 2194 | -10/Mines | Discovered new exit (range 21) 2200 | -10/Mines | Discovered new exit (range 30) 2242 | -10/Mines | Entered Materials 2242 | -9/Materials | Accompanied by 2 allies 2242 | -9/Materials | Evolved 2 slots: Utility x2 2512 | -9/Materials | Repaired Seismic Detector 2708 | -9/Materials | Discovered new exit (range 54) 2932 | -9/Materials | Discovered new exit (range 28) 3442 | -9/Materials | First assault squad dispatched 3902 | -9/Materials | Build established: Mutant 3943 | -9/Materials | Discovered new exit (range 16) 4010 | -9/Materials | Entered Mines 4029 | -9/Mines | Learned 2 Materials zone layouts 4046 | -9/Mines | Discovered new exit (range 6) 4205 | -9/Mines | Discovered new exit (range 10) 4436 | -9/Mines | Learned location of Storage (-8) 4711 | -9/Mines | Learned 4 Materials zone layouts 4843 | -9/Mines | Entered Materials 4843 | -8/Materials | Evolved 2 slots: Propulsion x2 4844 | -8/Materials | Identified exit to Factory 4844 | -8/Materials | Identified exit to Storage 4970 | -8/Materials | Build established: Scavenger-Mutant 5600 | -8/Materials | Discovered exit to Storage (range 16) 5610 | -8/Materials | Build established: Mutant 5811 | -8/Materials | Discovered exit to Factory (range 4) 5873 | -8/Materials | Repaired Arm. Wheel 5911 | -8/Materials | Repaired Imp. Light Armor Plating 6278 | -8/Materials | Entered Storage 6369 | -8/Storage | Repaired Arm. Wheel 6415 | -8/Storage | Repaired Deuterium Engine 6450 | -8/Storage | Assisted by bots powering up and referring to "LRC-V3" 6750 | -8/Storage | Build established: Commander-Mutant 6860 | -8/Storage | Garrison activated, responded to threat 6915 | -8/Storage | Met a pair of Derelict thieves 7029 | -8/Storage | Discovered exit to Factory (range 7) 7075 | -8/Storage | Entered Factory 7075 | -7/Factory | Accompanied by 7 allies 7075 | -7/Factory | Evolved 2 slots: Propulsion x1, Utility x1 7140 | -7/Factory | Fabricated Hcp. Storage Unit (x1) 7279 | -7/Factory | Discovered new exit (range 13) 7334 | -7/Factory | Identified exit to Lower Caves 7569 | -7/Factory | Repaired Cmb. Airjet 7875 | -7/Factory | First assault squad dispatched 7897 | -7/Factory | Build established: Scavenger-Mutant 7963 | -7/Factory | Destroyed 11 combat bots 8325 | -7/Factory | Sucked down chute 8325 | -7/Factory | Entered Waste 8326 | -7/Waste | Met a frightened Derelict 8351 | -7/Waste | Spotted C-40 Crusher 8429 | -7/Waste | Spotted C-40 Crusher 8446 | -7/Waste | Spotted C-40 Crusher 8466 | -7/Waste | Spotted C-40 Crusher 8469 | -7/Waste | Spotted C-40 Crusher 8481 | -7/Waste | Spotted C-40 Crusher 8484 | -7/Waste | Crushed by Compactor (1 part destroyed, 2 dropped) 8486 | -7/Waste | Discovered new exit (range 12) 8495 | -7/Waste | Warlord forces began an assault 8500 | -7/Waste | Allies destroyed C-40 Crusher 8511 | -7/Waste | Crushed by Compactor (1 part destroyed, 2 dropped) 8516 | -7/Waste | Allies destroyed C-40 Crusher 8516 | -7/Waste | Allies destroyed C-40 Crusher 8519 | -7/Waste | Allies destroyed C-40 Crusher 8524 | -7/Waste | Allies destroyed C-40 Crusher 8530 | -7/Waste | Allies destroyed C-40 Crusher 8545 | -7/Waste | Lost 5 parts (1p3n1w) 8545 | -7/Waste | Lost 4 allies 8776 | -7/Waste | Build established: Mutant 9438 | -7/Waste | Build established: Scavenger-Mutant 9868 | -7/Waste | Murdered 4 allies 9903 | -7/Waste | Identified exit to Factory 9904 | -7/Waste | Entered Factory 10141 | -7/Factory | Repaired Lrg. Storage Unit 10228 | -7/Factory | Core integrity fell below 50% 10464 | -7/Factory | Fabricated Imp. Sensor Array (x2) 10505 | -7/Factory | Fabricated Hacking Suite (x1) 10539 | -7/Factory | Garrison activated, responded to threat 10834 | -7/Factory | Build established: Mutant 11219 | -7/Factory | Discovered new exit (range 9) 11228 | -7/Factory | Identified exit to Factory 11462 | -7/Factory | Entered Lower Caves 11462 | -7/Lower Caves | Accompanied by 2 allies 11630 | -7/Lower Caves | Spotted B-75 Beast 11712 | -7/Lower Caves | Encountered a Warlord checkpoint 11925 | -7/Lower Caves | Activated DRS Beacon 11957 | -7/Lower Caves | Discovered new exit (range 6) 11967 | -7/Lower Caves | Identified exit to Lower Caves 11971 | -7/Lower Caves | Entered another Lower Caves area 11971 | -7/Lower Caves | Accompanied by 2 allies 11983 | -7/Lower Caves | Learned 8 Factory zone layouts 12290 | -7/Lower Caves | Discovered new exit (range 9) 12294 | -7/Lower Caves | Identified exit to Data Miner 12299 | -7/Lower Caves | Entered Data Miner 12299 | -7/Data Miner | Accompanied by 2 allies 12300 | -7/Data Miner | Discovered new exit (range 6) 12310 | -7/Data Miner | Met Data Miner 12320 | -7/Data Miner | Learned location of Section 7 (-2) 12320 | -7/Data Miner | Acquired the access code to Warlord's prototype stash 12328 | -7/Data Miner | Received God Mode back door access code from Data Miner 12349 | -7/Data Miner | Identified exit to Proximity Caves 12352 | -7/Data Miner | Entered Proximity Caves 12352 | -6/Proximity Caves | Accompanied by 2 allies 12354 | -6/Proximity Caves | Spotter reported a threat 12355 | -6/Proximity Caves | Spotter reported a threat 12385 | -6/Proximity Caves | Escorted by Enhanced Grunt 12389 | -6/Proximity Caves | Core integrity fell below 20% 12408 | -6/Proximity Caves | Spotter reported a threat 12475 | -6/Proximity Caves | Spotter reported a threat 12528 | -6/Proximity Caves | Spotter reported a threat 12587 | -6/Proximity Caves | Spotter reported a threat 12666 | -6/Proximity Caves | Discovered exit to Factory (range 10) 12737 | -6/Proximity Caves | System corruption reached 10% 12740 | -6/Proximity Caves | Attracted the attention of an 0b10 checkpoint 12740 | -6/Proximity Caves | Entered Factory 12740 | -6/Factory | Accompanied by 2 allies 12740 | -6/Factory | Evolved 2 slots: Utility x2 13025 | -6/Factory | Build established: Hacker-Scout 13069 | -6/Factory | Repaired Proton Missile Launcher 13090 | -6/Factory | Search patrols dispatched 13207 | -6/Factory | Discovered new exit (range 15) 13241 | -6/Factory | Identified exit to Factory 13306 | -6/Factory | Fabricated Gyrokinetic Inverter? 13440 | -6/Factory | Search patrols dispatched 13462 | -6/Factory | Discovered new exit (range 15) 13507 | -6/Factory | Repaired Med. Reactive Plating 13578 | -6/Factory | Sucked down chute 13578 | -6/Factory | Entered Waste 13578 | -6/Waste | The area was eerily silent 13582 | -6/Waste | Found Broken Gamma Bomb Array 13628 | -6/Waste | A Compactor rumbled back to life 13628 | -6/Waste | Spotted C-40 Crusher 13675 | -6/Waste | Discovered new exit (range 12) 13693 | -6/Waste | Identified exit to Factory 13693 | -6/Waste | Entered Factory 13833 | -6/Factory | Discovered new exit (range 4) 13835 | -6/Factory | Identified exit to Lower Caves 13979 | -6/Factory | Discovered new exit (range 6) 14027 | -6/Factory | Discovered exit to Factory (range 16) 14093 | -6/Factory | Discovered exit to Factory (range 6) 14194 | -6/Factory | Repaired Broken Gamma Bomb Array 14358 | -6/Factory | Hacking Suite fried by hacking feedback 14374 | -6/Factory | Spotted B-75 Beast 14517 | -6/Factory | Identified exit to Extension 14518 | -6/Factory | Entered Extension 14643 | -6/Extension | Disrupted transfer network 14708 | -6/Extension | Rescued A7 14739 | -6/Extension | Lost 3 parts (1p2u) 14898 | -6/Extension | Rescued a captive Derelict 14940 | -6/Extension | Rescued a captive Derelict 15419 | -6/Extension | Build established: Commander-Mutant 15839 | -6/Extension | Spotted B-75 Beast 15853 | -6/Extension | Spotted B-75 Beast 15874 | -6/Extension | Allies destroyed B-75 Beast 15902 | -6/Extension | Lost 9 allies 16127 | -6/Extension | Build established: Scavenger-Mutant 16187 | -6/Extension | Discovered exit to Factory (range 10) 16189 | -6/Extension | Discovered new exit (range 6) 16214 | -6/Extension | Identified exit to Cetus 16353 | -6/Extension | Entered Cetus 16353 | -6/Cetus | Accompanied by 9 allies (A7) 16358 | -6/Cetus | Acquired a Cetus Manufacturing Module code from A7 16435 | -6/Cetus | Spotted Cetus Guard 16436 | -6/Cetus | Spotted Cetus Guard 16436 | -6/Cetus | Spotted Cetus Guard 16442 | -6/Cetus | Destroyed Cetus Guard 16445 | -6/Cetus | Destroyed Cetus Guard 16449 | -6/Cetus | Destroyed Cetus Guard 16531 | -6/Cetus | Started Cetus Manufacturing Module 16556 | -6/Cetus | Manufactured an Enhanced Grunt 16581 | -6/Cetus | Manufactured an Enhanced Grunt 16606 | -6/Cetus | Manufactured an Enhanced Grunt 16631 | -6/Cetus | Manufactured an Enhanced Grunt 16656 | -6/Cetus | Manufactured an Enhanced Grunt 16718 | -6/Cetus | Discovered new exit (range 15) 16726 | -6/Cetus | Identified exit to Archives 16759 | -6/Cetus | Entered Archives 16759 | -6/Archives | Accompanied by 14 allies (A7) 16978 | -6/Archives | Lost 3 allies 17013 | -6/Archives | Found Prototype Device 17013 | -6/Archives | Identified Exp. Thermal Shield 17034 | -6/Archives | Discovered exit to Factory (range 14) 17059 | -6/Archives | Build established: Commander-Mutant 17097 | -6/Archives | System corruption reached 10% 17389 | -6/Archives | Discovered new exit (range 19) 17404 | -6/Archives | Discovered new exit (range 16) 17511 | -6/Archives | Identified exit to Hub_04(d) 17578 | -6/Archives | Entered Hub_04(d) 17578 | -6/Hub_04(d) | Accompanied by 8 allies 17693 | -6/Hub_04(d) | Build established: Scavenger-Scout 17745 | -6/Hub_04(d) | Discovered exit to Factory (range 16) 17901 | -6/Hub_04(d) | Lost 4 allies 17911 | -6/Hub_04(d) | Discovered exit to Factory (range 5) 17949 | -6/Hub_04(d) | Network Hub disabled 17950 | -6/Hub_04(d) | Spotted Lightning 17952 | -6/Hub_04(d) | Spotted Lightning 17952 | -6/Hub_04(d) | Spotted Lightning 17960 | -6/Hub_04(d) | Entered Factory 17960 | -5/Factory | Evolved 2 slots: Propulsion x1, Utility x1 17988 | -5/Factory | Lost 7 parts (1p5n1w) 18324 | -5/Factory | Build established: Hacker-Assassin 19233 | -5/Factory | Repaired Adv. Energy Well 19306 | -5/Factory | Discovered new exit (range 9) 19315 | -5/Factory | Identified exit to Upper Caves 19386 | -5/Factory | Discovered new exit (range 15) 19597 | -5/Factory | Spotted B-75 Beast 19664 | -5/Factory | System corruption reached 10% 20091 | -5/Factory | Fabricated Exp. Utility Shielding? 20360 | -5/Factory | First assault squad dispatched 20603 | -5/Factory | Incoming investigation squad redirected 20762 | -5/Factory | Entered Upper Caves 20762 | -5/Upper Caves | Spotted B-75 Beast 20810 | -5/Upper Caves | Learned location of Armory (-4) 21200 | -5/Upper Caves | Encountered a Warlord checkpoint 21338 | -5/Upper Caves | Discovered new exit (range 8) 21344 | -5/Upper Caves | Identified exit to Upper Caves 21507 | -5/Upper Caves | Entered another Upper Caves area 21511 | -5/Upper Caves | Learned Factory interactive machine intel 21564 | -5/Upper Caves | Discovered new exit (range 5) 21582 | -5/Upper Caves | Identified exit to Factory 21646 | -5/Upper Caves | Encountered a Warlord checkpoint 21775 | -5/Upper Caves | Learned Factory emergency access door positions 21786 | -5/Upper Caves | Discovered new exit (range 11) 21796 | -5/Upper Caves | Identified exit to Warlord 21796 | -5/Upper Caves | Entered Warlord 21812 | -5/Warlord | System corruption cleaned by Quarantine Array 21938 | -5/Warlord | Visited the Vortex Lab 21946 | -5/Warlord | Found Prototype Energy Gun 21946 | -5/Warlord | Identified Vortex Rifle 21949 | -5/Warlord | Warlord's base attacked by MAIN.C 21949 | -5/Warlord | Found Vortex Rifle 21995 | -5/Warlord | Found Prototype Device 21995 | -5/Warlord | Identified Minesniffer Drone Bay 22061 | -5/Warlord | Found Prototype Special Weapon 22061 | -5/Warlord | Identified RU-N14's Throwing Claymores v3 22122 | -5/Warlord | Met Warlord 22128 | -5/Warlord | Opened Warlord's prototype stash 22152 | -5/Warlord | Found Prototype Device 22152 | -5/Warlord | Identified Exp. Phase Shifter 22165 | -5/Warlord | Found Prototype Reactor 22299 | -5/Warlord | Warlord forces counterattacked 22351 | -5/Warlord | Lost 3 allies 22567 | -5/Warlord | Build established: Hacker-Scout 22624 | -5/Warlord | Warlord base infiltrated, sounded retreat 22677 | -5/Warlord | Lost 4 allies 22856 | -5/Warlord | Found Prototype Processor 22875 | -5/Warlord | Spotted Striker 22879 | -5/Warlord | Spotted Executioner 22893 | -5/Warlord | Crushed by falling debris 22894 | -5/Warlord | Crushed by falling debris 22894 | -5/Warlord | Discovered new exit (range 15) 22923 | -5/Warlord | Lost 20 allies 22936 | -5/Warlord | Lost 5 parts (1p3n1u) 22948 | -5/Warlord | Found Prototype Device 22948 | -5/Warlord | Identified Exp. Shock Absorption System 22965 | -5/Warlord | Spotted Executioner 22970 | -5/Warlord | Spotted Executioner 22975 | -5/Warlord | Identified exit to Proximity Caves 22975 | -5/Warlord | Entered Proximity Caves 22977 | -4/Proximity Caves | Spotter reported a threat 22978 | -4/Proximity Caves | Spotter reported a threat 22992 | -4/Proximity Caves | Lost 3 allies 23035 | -4/Proximity Caves | Learned Research security intel 23192 | -4/Proximity Caves | Lost 3 parts (1n1u1w) 23197 | -4/Proximity Caves | Learned Research trap positions 23345 | -4/Proximity Caves | Core integrity fell below 50% 23345 | -4/Proximity Caves | Spotter reported a threat 23380 | -4/Proximity Caves | Core integrity fell below 20% 23399 | -4/Proximity Caves | Destroyed by S-27 Virus with Autogun Last Messages --------------- 23300_ Imp. System Restoration Module purges 1% system corruption (4%). 23300_ Imp. System Restoration Module expended. 23338_ Antigrav System destroyed. 23343_ Adv. Signal Interpreter destroyed. 23343_ Imp. Hacking Suite destroyed. 23343_ System corrupted by crushing effect (+5). 23344_ Lgt. Antimatter Reactor destroyed. 23345_ ALERT: Unidentified potential threat approaching Complex 0b10. 23345_ Mic. Fission Core destroyed. 23345_ System corrupted by crushing effect (+2). 23347_ System corrupted: Matter fused (-10). 23349_ Neutron Cannon destroyed. 23357_ Adv. Terrain Scan Processor destroyed. 23358_ Cld. Antigrav System destroyed. 23358_ Imp. Hacking Suite destroyed. 23362_ System corrupted: Matter fused (-6). 23362_ Cld. Antigrav System destroyed. 23368_ Cmb. Linear Gravjet destroyed. 23386_ System corrupted: Matter fused (-8). 23390_ Cmb. Linear Gravjet destroyed. Map ----- +----------------------------------------------------+ | ?????????????????????????????????????????????????? | | ?????????????????????????????????????????????????? | | ?????????????????????????????????????????????????? | | ?????????????????????????????????????????????????? | | ?????????????????????????????????????????????????? | | ?????????????????????????????????????????????????? | | ?????????????????????????????????????????????????? | | ?????????????????????????????????????????????????? | | ?????????????????????????????????????????????????? | | ?????????????????????????????????????????????????? | | ?????????????????????????????????????????????????? | | ?????????????????????????????????????????????????? | | ?????????????????????????????????????????????????? | | ?????????????????????????????????????????????????? | | ?????????????????????????????????????????????????? | | ?????????????????????????????????????????????????? | | ?????????????????????????????????????????????????? | | ?????????????????????????????????????????????????? | | ?????????????????????????????????????????????????? | | ????????????????????????????????#????????????????? | | ????????????????????####??????? #????????????????? | | ????????????????????# ##???## #### ?????????? | | ??????????# ????????# ##? ?????????? | | ??????????# ?????????# ## s ??????????? | | ??????????#=?????##### s """?????????????? | | ??????????#%#????# s @ """?????????????? | | ?????????## ????##s g ### " " ????????????? | | ????????## ?????# ###??# ??????????? | | ??????### ?????# #????? """"""" ?????????? | | ?????## ?????# #?????? """"""??????????????? | | ?##### ##???# #???????" " ????????????????? | | ## ##### #???????? ????????????????? | | # ## #???????? ???????????????? | | ##????????? ###??????????????? | | #####???????????#????????????????? | | ##????????????????????????????????? | | #?????????????????????????????????? | | ## ###???????????????????????????????? | | ???## ##??????????????????????????????? | | ???# #??????????????????????????????? | | ???# #??????????????????????????????? | | ???### #??????????????????????????????? | | ?????## #??????????????????????????????? | | ??????###### ####??????????????????????????????? | | ??????????## ##????????????????????????????????? | | ??????????# ##???????????????????????????????? | | ??????????# ##??????????????????????????????? | | ??#???????# #?##???????????????????????????? | | ??# ??????## ## #???????????????????????????? | | ?#? ??????# ## #????????????????????????????? | +----------------------------------------------------+ Best States ------------- Heat Dissipation 70 Energy Generation 21 Energy Capacity 815 Matter Stores 300 Matter Capacity 300 Sight Range 16 Robot Scan Range 16 Terrain Scan Range 20 Terrain Scan Density 210 Armor Coverage 675 Resistance: KI 30 Resistance: EX 75 Evasion (%) 59 Targeting Accuracy 8 Armor Integrity Analysis 30 Recoil Reduction 1 Offensive Hacking 36 Authchip Count 7 Item Schematics ----------------- Hcp. Storage Unit | -10/Materials | Hacked Hacking Suite | -9/Materials | Scanalyzed Deuterium Engine | -8/Storage | Hacked Imp. Terrain Scan Processor | -7/Factory | Scanalyzed Imp. Sensor Array | -7/Factory | Hacked Combat Drone Bay | -7/Data Miner | Free Lgt. Regenerative Plating | -7/Data Miner | Free Cld. Cesium-ion Thruster | -7/Data Miner | Free Thermal Defense Suite | -7/Data Miner | Free Cld. Plasma Cannon | -7/Data Miner | Free Arm. Medium Treads | -7/Data Miner | Free Recoil Nullifier | -7/Data Miner | Free Hvy. Phase Cannon | -7/Data Miner | Free Phase Shifter | -7/Data Miner | Free Imp. Hacking Suite | -6/Factory | Scanalyzed Quantum Capacitor | -6/Factory | Hacked Exp. Utility Shielding | -5/Factory | Hacked Robot Schematics ------------------ S-27 Virus | -7/Data Miner | Free O-24 Administrator | -7/Data Miner | Free R-10 Processor | -7/Data Miner | Free A-15 Conveyor | -7/Data Miner | Free Fabricated ------------ Hcp. Storage Unit | x1 | -7/Factory Imp. Sensor Array | x2 | -7/Factory | Authchip Hacking Suite | x1 | -7/Factory | Authchip Gyrokinetic Inverter | x2 | -6/Factory | Preloaded Exp. Utility Shielding | x1 | -5/Factory | Authchip Alien Tech Used ----------------- None Achievements -------------- Below Challenges ------------ None Game ------ Seed ArmorMakeshiftLance Manual? 0 Play Time 04:55:56 Cumulative 276.5 hours Start 2024.10.20 @ 23:01:27 End 2024.10.25 @ 22:04:03 Sessions 5 Manual Loads 0 Difficulty Rogue Special Mode None Game No. 143 Rogue 143 Adventurer 0 Explorer 0 Win Type - Total 4 Types 4/0/0/0/0/0/0/0/0 Lore% 44 Gallery% 66 Achievement% 58 Wizard Run 0 Options --------- Layout 0 ASCII 0 Keyboard 1 Movement Vi Keybinds 0 Fullscreen 2 Font 18/SmallcapsGlow Map View 76x50 Zoom Use 0% Tactical HUD 1 Map Filters NONE Filters NONE Steam 1 RUN: 3cecc4aa-7b73-41a7-89c9-aafc2d741ca0